Cogmind - Beta 15 @@@ ROGUE MODE // 2025.08.07 @ 22:07:43 Player: P9H Result: Destroyed by G-47 Trooper with Particle Gun Performance ------------- Evolutions (2) 1000 Regions Visited (6) 1200 Robots Destroyed (73) 365 Value Destroyed (2077) 2077 Prototype IDs (23) 460 Alien Tech Used (0) 0 Bonus (522) 522 TOTAL SCORE: 5624 Bonus ------- High Alert Combat Kills 181 Follower Combat Kills 41 Aligned with FarCom 300 Cogmind --------- Core Integrity 0/550 Matter 34/300 Energy 90/100 System Corruption 30% Temperature Cool (27) Movement Core (2500) Ox49 Location -8/Materials Parts ------- > --- POWER (1) -------- (None) > --- PROPULSION (2) --- (None) > --- UTILITY (5) ------ Cargo Storage Unit Signal Interpreter Hacking Suite > --- WEAPON (3) ------- Light Cannon Flak Cannon > --- INVENTORY (30) --- Light Nuclear Core Light Nuclear Core Light Nuclear Core Surge Thruster Large Storage Unit Huge Storage Unit Structural Scanner Advanced Visual Processing Unit Targeting Computer Improved Power Shielding Insulated Plating Insulated Plating Hacking Suite Hacking Suite Hacking Suite System Shield Particle Gun Flail Mining Claw Peak State ------------ > --- POWER ------------ Deuterium Engine > --- PROPULSION ------- Armored Wheel Armored Wheel > --- UTILITY ---------- Cargo Storage Unit Signal Interpreter Reactive Plating Hacking Suite > --- WEAPON ----------- Latent Energy Streamer Heavy Assault Rifle Light Cannon > --- INVENTORY -------- Improved Ion Engine Deuterium Engine Light Nuclear Core Light Nuclear Core Light Nuclear Core Surge Thruster Large Storage Unit Structural Scanner Targeting Computer Improved Power Shielding Insulated Plating Hacking Suite Hacking Suite Hacking Suite System Shield Particle Gun Light Cannon Flak Cannon Improved Grenade Launcher Improved Grenade Launcher Mining Claw [Rating: 34] Favorites ----------- Power Deuterium Engine Engine Deuterium Engine Propulsion Light Treads Treads Light Treads Wheel Armored Wheel Utility Large Storage Unit Device Structural Scanner Storage Large Storage Unit Processor Signal Interpreter Hackware Hacking Suite Protection Reactive Plating Weapon Assault Rifle Energy Gun Small Laser Energy Cannon Latent Energy Streamer Ballistic Gun Assault Rifle Ballistic Cannon Light Cannon Launcher Improved Grenade Launcher Build | -11 -10 -9 -9 -9 -8 -8 ------- Run | Yrd Mat Mat Min Exi Min Mat Slots Evolved 4 | . . 2 . . . 2 Power . | . . . . . . . Propulsion . | . . . . . . . Utility 3 | . . 1 . . . 2 Weapon 1 | . . 1 . . . . Parts Attached 36 | 5 8 6 . 1 . 16 Power 5 | 1 . 1 . . . 3 Engine 5 | 1 . 1 . . . 3 Core . | . . . . . . . Reactor . | . . . . . . . Propulsion 6 | 1 1 1 . . . 3 Treads 4 | 1 1 1 . . . 1 Leg . | . . . . . . . Wheel 2 | . . . . . . 2 Hover . | . . . . . . . Flight . | . . . . . . . Utility 9 | 1 2 1 . . . 5 Device 1 | . 1 . . . . . Storage 3 | 1 1 . . . . 1 Processor 1 | . . . . . . 1 Hackware 2 | . . 1 . . . 1 Protection 2 | . . . . . . 2 Artifact . | . . . . . . . Weapon 16 | 2 5 3 . 1 . 5 Energy Gun 3 | 2 1 . . . . . Energy Cannon 1 | . . . . 1 . . Ballistic Gun 6 | . 3 1 . . . 2 Ballistic Cannon 3 | . 1 . . . . 2 Launcher 3 | . . 2 . . . 1 Special Weapon . | . . . . . . . Impact Weapon . | . . . . . . . Slashing Weapon . | . . . . . . . Piercing Weapon . | . . . . . . . Special Melee Weapon . | . . . . . . . Unidentified Prototypes . | . . . . . . . Parts Lost 20 | . 2 . . . . 18 Power 4 | . . . . . . 4 Propulsion 4 | . . . . . . 4 Utility 2 | . . . . . . 2 Weapon 10 | . 2 . . . . 8 Highest Loss Streak 5 | . 1 . . . . 5 To Critical Strikes . | . . . . . . . Average Backups 14 | 4 12 14 15 15 15 18 Power 3 | . 2 3 4 3 3 3 Propulsion 2 | 2 3 2 2 2 2 1 Utility 4 | . 2 4 5 5 5 7 Weapon 4 | . 3 4 4 4 5 5 Tool/Special . | . . . . . . . Unused Backups 39 | . 12 8 . 1 . 18 Power 8 | . 1 2 . 1 . 4 Propulsion 10 | . 5 4 . . . 1 Utility 12 | . 2 . . . . 10 Weapon 9 | . 4 2 . . . 3 Tool/Special . | . . . . . . . Average Slot Usage (%) 94 | . 94 99 100 100 100 83 Engine 11 | . 14 11 11 11 11 8 Treads 19 | . 25 22 22 22 22 3 Wheel 2 | . . . . . . 13 Device 9 | . 10 11 11 11 11 2 Storage 11 | . 14 11 11 11 11 9 Processor 1 | . . . . . . 9 Hackware 6 | . . 10 11 11 11 11 Energy Gun 4 | . 11 . . . . . Energy Cannon 2 | . . . . 4 11 6 Ballistic Gun 10 | . 8 17 11 11 11 8 Ballistic Cannon 4 | . 7 6 . . . 3 Launcher 7 | . . 8 22 17 11 4 Peak Build Rating 34 | 5 8 20 20 27 27 34 Average Rating 16 | 3 7 17 20 23 27 28 On Entrance 15 | . 5 8 20 20 27 27 Naked Turns . | . . . . . . . Heaviest Build 175 | 13 31 44 44 48 48 175 Greatest Support 40 | 20 40 40 40 40 40 40 Greatest Overweight (x) 14 | . 1 1 1 1 1 14 Average Overweight (x) 1 | . . . 1 . 1 4 Largest Inventory Capacity 30 | 8 15 15 15 15 15 30 Average Capacity 16 | 7 14 15 15 15 15 25 Most Carried 25 | 6 15 15 15 15 15 25 Average Carried 14 | 4 12 14 15 15 15 18 Final Capacity 30 | 8 15 15 15 15 15 30 Final Carried 19 | 5 15 15 15 15 15 19 Class Distribution -------------------- 41% | Skirmisher 39% | Mutant 7% | Hauler-Skirmisher 6% | Hauler-Mutant 5% | Hacker-Skirmisher Dominant Class ---------------- Mutant | -10/Materials Skirmisher | -9/Materials Skirmisher | -9/Mines Skirmisher | -9/Exiles Skirmisher | -8/Mines Hauler-Skirmisher | -8/Materials Resources | -11 -10 -9 -9 -9 -8 -8 ----------- Run | Yrd Mat Mat Min Exi Min Mat Matter Collected 1174 | 208 163 174 167 . 68 394 Remotely . | . . . . . . . Salvage Created 2226 | . 502 305 . . 91 1328 Parts 132 | . 33 18 . . 6 75 Haulers Intercepted 4 | . . . . . . 4 Recyclers Shooed 3 | . 1 . . . . 2 Parts Field Recycled . | . . . . . . . Retrieved Matter . | . . . . . . . Parts Self-Destructed . | . . . . . . . Prevented . | . . . . . . . Kills | -11 -10 -9 -9 -9 -8 -8 ------- Run | Yrd Mat Mat Min Exi Min Mat Combat Hostiles Destroyed 49 | . 9 8 2 . 1 29 Guns 17 | . 8 6 . . 1 2 Cannons 2 | . . . . . . 2 AOE 28 | . 1 2 2 . . 23 Classes Destroyed 10 | . 6 1 . . 2 1 Worker 4 | . 1 1 . . 1 1 Builder 4 | . . . . . 1 3 Hauler 4 | . . . . . . 4 Recycler 4 | . 2 1 . . . 1 Operator 4 | . 2 1 . . . 1 Watcher 4 | . 3 . . . . 1 Swarmer 14 | . 5 3 2 . . 4 Grunt 24 | . 4 3 . . . 17 Sentry 8 | . . 2 . . . 6 Hunter 3 | . . . . . 1 2 Best Kill Streak 10 | . 3 4 2 . 2 10 Combat Bots Only 8 | . 3 4 2 . 1 8 Max Kills in Single Turn 5 | . 1 2 2 . 1 5 Gunslinging . | . . . . . . . Exploded 4 | . 1 1 2 . . 4 Melee . | . . . . . . . Uniques/NPCs Destroyed . | . . . . . . . Combat | -11 -10 -9 -9 -9 -8 -8 -------- Run | Yrd Mat Mat Min Exi Min Mat Hostile Shots Fired 292 | . 55 50 2 . 2 183 Missed 99 | . 20 19 2 . 1 57 Hits 193 | . 35 31 . . 1 126 Projectile 193 | . 35 31 . . 1 126 Critical Strikes 9 | . . 1 . . . 8 Damage Taken 3323 | . 376 421 . . 21 2505 Core 684 | . 54 74 . . . 556 Absorbed by Shields . | . . . . . . . Ignored by Resistances 37 | . . . . . . 37 Core Remaining (%) 86 | 100 78 . . . 81 . Volleys Fired 126 | . 50 24 1 . 2 49 Largest 3 | . 2 3 3 . 2 3 Hottest 113 | . 80 92 92 . 80 113 Shots Fired 244 | . 98 62 3 . 4 77 Gun 151 | . 91 39 1 . 2 18 Cannon 56 | . 7 15 . . 1 33 Launcher 37 | . . 8 2 . 1 26 Special . | . . . . . . . Kinetic 113 | . 19 54 1 . 2 37 Thermal 42 | . 42 . . . . . Explosive 37 | . . 8 2 . 1 26 Electromagnetic 52 | . 37 . . . 1 14 Robot Hit Streak 15 | . 15 12 . . 3 6 Robot Miss Streak 6 | . 3 3 3 . . 6 Penetration Max . | . . . . . . . Secondary Targets 2 | . 2 . . . . . Max Gunslinging Chain 1 | . 1 . . . . . Shots Hit Robots 134 | . 63 34 . . 3 34 Core Hits 121 | . 24 17 2 . 4 74 Critical Kills . | . . . . . . . Critical Parts Destroyed 1 | . . . . . . 1 Critical Strikes 2 | . . . . . . 2 Destroy 1 | . . . . . . 1 Blast 1 | . . . . . . 1 Melee Attacks . | . . . . . . . Impact . | . . . . . . . Slashing . | . . . . . . . Piercing . | . . . . . . . Sneak Attacks . | . . . . . . . Combat Hostiles . | . . . . . . . Follow-up Attacks . | . . . . . . . Damage Inflicted 5653 | . 756 834 107 . 105 3851 Guns 1110 | . 636 313 . . 20 141 Cannons 462 | . 91 139 . . 5 227 Explosions 4069 | . 21 382 107 . 76 3483 Melee . | . . . . . . . Ramming 12 | . 8 . . . 4 . Kinetic 964 | . 144 452 . . 20 348 Thermal 443 | . 296 . . . . 147 Explosive 2558 | . . 382 107 . . 2069 Electromagnetic 1676 | . 308 . . . 81 1287 Impact . | . . . . . . . Slashing . | . . . . . . . Piercing . | . . . . . . . Highest Corruption 30 | . . . . . 2 30 Average Corruption 17 | . . . . . 2 19 Corruption Purged . | . . . . . . . Corruption Blocked . | . . . . . . . Effects 48 | . . . . . . 48 Message Errors 11 | . . . . . . 11 Matter Fused 9 | . . . . . . 9 Heat Flow Errors 5 | . . . . . . 5 Energy Discharges 3 | . . . . . . 3 Parts Rejected 1 | . . . . . . 1 Data Loss (minor) 5 | . . . . . . 5 Data Loss (major) 4 | . . . . . . 4 Misdirections 1 | . . . . . . 1 Weapon Failures 9 | . . . . . . 9 Overload Shots . | . . . . . . . Overflow Damage 160 | . . 3 . . . 157 Projectiles 3 | . . 3 . . . . Explosions 157 | . . . . . . 157 Melee . | . . . . . . . Knockbacks 3 | . 1 1 . . . 1 Impact 1 | . 1 . . . . . Kinetic 2 | . . 1 . . . 1 Secondary . | . . . . . . . Self-Inflicted Damage 396 | . 13 19 . . . 364 Shots 8 | . 1 1 . . . 6 Rammed 1 | . 1 . . . . . Targets Rammed 2 | . 1 . . . 1 . Kicked . | . . . . . . . Crushed 1 | . . . . . 1 . Highest Temperature 289 | . 178 57 24 . 12 289 Average Temperature 52 | . 59 12 13 . 7 63 Received Heat Transfer 954 | . 129 177 . . . 648 Siege Activations . | . . . . . . . Martial Activations . | . . . . . . . Shielding Activations . | . . . . . . . Robots Disrupted . | . . . . . . . Combat Hostiles . | . . . . . . . Robots Corrupted 2 | . . . . . . 2 Combat Hostiles 2 | . . . . . . 2 Parts Fried 6 | . 1 . . . . 5 Impact Corruptions . | . . . . . . . Robots Melted . | . . . . . . . Combat Hostiles . | . . . . . . . Parts Melted 2 | . 1 . . . . 1 Heat Transferred 775 | . 625 . . . . 150 Parts Sabotaged . | . . . . . . . Parts Stolen . | . . . . . . . Parts Stripped . | . . . . . . . Power Chain Reactions 3 | . 1 . . . . 2 Latent Energy Used 1799 | . . . . . 94 1705 LE Corruption 31 | . . . . . 2 29 Alert | -11 -10 -9 -9 -9 -8 -8 ------- Run | Yrd Mat Mat Min Exi Min Mat Maximum Alert Level 3 | . . . . . . 3 Low Security (%) 89 | 100 100 100 100 . 100 50 Level 1 4 | . . . . . . 22 Level 2 4 | . . . . . . 22 Level 3 1 | . . . . . . 5 Level 4 . | . . . . . . . Level 5 . | . . . . . . . High Security . | . . . . . . . Max Security . | . . . . . . . Peak Influence 797 | . 99 106 56 . 49 797 Initial 31 | . . . 31 . . . Average 76 | . 21 41 9 . 12 266 Influence Increases 2097 | . 362 306 56 . 88 1285 Destroy 0b10 Robot/C 1000 | . 180 160 40 . 40 580 Destroy 0b10 Robot/NC 120 | . 40 15 . . 10 55 Destroy Leader 256 | . 46 50 . . 20 140 Allied During Kill 4 | . . . . . 4 . Disable Machine 225 | . . 15 . . . 210 Destroy Structure 387 | . 6 51 16 . 14 300 Lose Combat Pursuer 105 | . 90 15 . . . . Influence Decreases 1362 | . 361 225 138 . 88 550 Entered New Map 52 | . . 1 51 . . . Time Decay 1110 | . 341 224 87 . 88 370 Lost Part 200 | . 20 . . . . 180 Squads Dispatched 6 | . 1 1 . . . 4 Investigation 1 | . . . . . . 1 Extermination . | . . . . . . . Reinforcement 5 | . 1 1 . . . 3 Assault . | . . . . . . . Garrison . | . . . . . . . Intercept . | . . . . . . . Searches Triggered . | . . . . . . . Construction Impeded 1 | . . . . . . 1 Haulers Reinforced . | . . . . . . . Active Scanning Responses . | . . . . . . . Cargo Convoy Interrupts . | . . . . . . . Stealth | -11 -10 -9 -9 -9 -8 -8 --------- Run | Yrd Mat Mat Min Exi Min Mat Distress Signals 3 | . . 1 . . . 2 Communications Jammed . | . . . . . . . Distress Signals . | . . . . . . . Times Spotted 73 | . 23 14 2 . 2 32 Peak Tracking Total 9 | . 3 6 1 . 1 9 Tactical Retreats 6 | . 5 1 . . . . Traps | -11 -10 -9 -9 -9 -8 -8 ------- Run | Yrd Mat Mat Min Exi Min Mat Traps Triggered . | . . . . . . . Indirectly . | . . . . . . . Trap Hack Attempts . | . . . . . . . Triggered . | . . . . . . . Disarmed . | . . . . . . . Reprogrammed 4 | . 4 . . . . . Reused . | . . . . . . . Traps Extracted . | . . . . . . . Installed . | . . . . . . . Triggered . | . . . . . . . Machines | -11 -10 -9 -9 -9 -8 -8 ---------- Run | Yrd Mat Mat Min Exi Min Mat Machines Disabled 15 | . . 1 . . . 14 Max in Single Turn 3 | . . 1 . . . 3 Garrison Access 1 | . . . . . . 1 Machines Repaired . | . . . . . . . Machines Dismantled . | . . . . . . . Machines Sabotaged . | . . . . . . . Overloaded Fab Kills . | . . . . . . . Hacking | -11 -10 -9 -9 -9 -8 -8 --------- Run | Yrd Mat Mat Min Exi Min Mat Machines Accessed 5 | . 1 1 . 1 . 2 Terminals 3 | . 1 1 . . . 1 Fabricators . | . . . . . . . Repair Stations . | . . . . . . . Recycling Units . | . . . . . . . Scanalyzers . | . . . . . . . Garrison Access 1 | . . . . . . 1 Total Hacks 7 | . 1 2 . 1 . 3 Successful 4 | . 1 1 . 1 . 1 Failed 3 | . . 1 . . . 2 Catastrophic 1 | . . . . . . 1 Database Lockouts . | . . . . . . . Manual 6 | . 1 2 . 1 . 2 Terminals 5 | . 1 2 . . . 2 Fabricators . | . . . . . . . Repair Stations . | . . . . . . . Recycling Units . | . . . . . . . Scanalyzers . | . . . . . . . Garrison Access 1 | . . . . . . 1 Terminal Hacks 3 | . 1 1 . 1 . . Branch Access Points 1 | . . 1 . . . . Reprogram Traps 1 | . 1 . . . . . Proto ID Catalog 1 | . . . . 1 . . Fabricator Hacks . | . . . . . . . Repair Station Hacks . | . . . . . . . Recycling Unit Hacks . | . . . . . . . Scanalyzer . | . . . . . . . Garrison Access Hacks 1 | . . . . . . 1 Seal Access 1 | . . . . . . 1 Unauthorized Hacks . | . . . . . . . Terminals . | . . . . . . . Fabricators . | . . . . . . . Repair Stations . | . . . . . . . Recycling Units . | . . . . . . . Scanalyzers . | . . . . . . . Garrison Access . | . . . . . . . Data Cores Recovered 1 | . 1 . . . . . Used . | . . . . . . . Hacking Detections 2 | . . 1 . . . 1 Full Trace Events 1 | . . . . . . 1 Feedback Events 1 | . . . . . . 1 Hackware Fried 1 | . . . . . . 1 Feedback Blocked . | . . . . . . . Robot Schematics Acquired . | . . . . . . . Robots Built . | . . . . . . . Authchips . | . . . . . . . Time . | . . . . . . . Total Robot Build Rating . | . . . . . . . Part Schematics Acquired . | . . . . . . . Parts Built . | . . . . . . . Authchips . | . . . . . . . Time . | . . . . . . . Total Part Build Rating . | . . . . . . . Parts Repaired . | . . . . . . . Time . | . . . . . . . Parts Recycled . | . . . . . . . Recycled Matter . | . . . . . . . Retrieved Matter . | . . . . . . . Retrieved Components . | . . . . . . . Parts Scanalyzed . | . . . . . . . Part Schematics Acquired . | . . . . . . . Parts Damaged . | . . . . . . . Bothacking | -11 -10 -9 -9 -9 -8 -8 ------------ Run | Yrd Mat Mat Min Exi Min Mat Used RIF Installer . | . . . . . . . Robots Hacked . | . . . . . . . Non-combat . | . . . . . . . Combat . | . . . . . . . Robot Hacks Applied . | . . . . . . . Relay Couplers Released . | . . . . . . . Fabnet Peak Effective % . | . . . . . . . Robots Rewired . | . . . . . . . Allies Hacked . | . . . . . . . Hacks Repelled . | . . . . . . . Allies | -11 -10 -9 -9 -9 -8 -8 -------- Run | Yrd Mat Mat Min Exi Min Mat Total Allies 3 | . . . 3 . . . Largest Group 3 | . . . 3 3 3 . Highest-Rated Group 40 | . . . 40 40 40 . Highest-Rated Ally 16 | . . . 16 16 16 . Total Orders . | . . . . . . . Ally Attacks 12 | . . . . . 12 . Total Damage 113 | . . . . . 113 . Kills 1 | . . . . . 1 . Allies Corrupted . | . . . . . . . Allies Melted . | . . . . . . . Intel | -11 -10 -9 -9 -9 -8 -8 ------- Run | Yrd Mat Mat Min Exi Min Mat Active Infowar (turns) 3409 | . 1286 646 432 528 254 263 Structural 3409 | . 1286 646 432 528 254 263 Robot Analysis Total . | . . . . . . . Derelict Logs Recovered . | . . . . . . . Drone Launches . | . . . . . . . Drone Recoveries . | . . . . . . . Exploration | -11 -10 -9 -9 -9 -8 -8 ------------- Run | Yrd Mat Mat Min Exi Min Mat Turns Passed 4534 | 82 1705 646 432 528 254 887 Spaces Moved 2124 | 48 913 283 179 219 103 379 Core 9 | 8 . . . . . 1 Treads 1786 | 40 913 283 179 219 103 49 Legs . | . . . . . . . Wheels 329 | . . . . . . 329 Hover . | . . . . . . . Flight . | . . . . . . . Fastest Speed 50 | 50 160 160 240 160 240 105 Average Speed 186 | 141 160 187 240 239 240 182 Slowest Speed 750 | 160 240 240 240 240 240 750 Overloaded Moves . | . . . . . . . Propulsion Burnouts . | . . . . . . . Robots Hopped . | . . . . . . . Potential Cave-ins . | . . . . . . . Cave-ins Triggered . | . . . . . . . Exploration Rate (%) 45 | 5 95 35 46 60 40 35 Regions Visited 6 Branch Regions 3 Pre-discovered Areas . | . . . . . . . Known Exits Taken 1 | . . 1 . . . . Unknown Exits Taken 5 | 1 1 . 1 1 1 . Scrap Searched . | . . . . . . . Spaces Dug . | . . . . . . . Terrain Destroyed 527 | . 5 63 21 . 18 420 Melee . | . . . . . . . Projectile 1 | . . . . . . 1 AOE 526 | . 5 63 21 . 18 419 Terrain Rammed . | . . . . . . . Walls Destroyed . | . . . . . . . Machines Disabled . | . . . . . . . Actions | -11 -10 -9 -9 -9 -8 -8 --------- Run | Yrd Mat Mat Min Exi Min Mat Total 2499 | 62 1067 362 180 224 105 499 Wait 97 | . 50 24 1 . . 22 Move 2118 | 47 912 282 178 218 102 379 Hop . | . . . . . . . Pick Up 75 | 10 28 12 . 1 . 24 Fast Attach 7 | . 3 2 . 2 . . Attach 28 | 5 4 1 . . . 18 Detach . | . . . . . . . Swap 7 | . 1 3 . . . 3 Drop 39 | . 18 14 . 3 . 4 Fire 126 | . 50 24 1 . 2 49 Melee . | . . . . . . . Ram . | . . . . . . . Kick . | . . . . . . . Crush 2 | . 1 . . . 1 . Escape Stasis . | . . . . . . . Rewire . | . . . . . . . Trap . | . . . . . . . Miscellaneous . | . . . . . . . Route ------- -11/Scrapyard -10/Materials (discovered 5 exits: *Mat x3 / [*Min] / [*Sub]) -9/Materials (discovered 4 exits: *Mat / *Min / *Sto x2) -9/Mines (discovered 2 exits: *Mat / *Exi) -9/Exiles -8/Mines -8/Materials History --------- Turn | Location | Event 7 | -11/Scrapyard | Discovered new exit (range 16) 83 | -11/Scrapyard | Entered Materials 341 | -10/Materials | Build established: Mutant 444 | -10/Materials | Discovered new exit (range 6) 556 | -10/Materials | Discovered new exit (range 16) 775 | -10/Materials | Discovered new exit (range 3) 1009 | -10/Materials | Discovered new exit (range 12) 1555 | -10/Materials | Discovered new exit (range 8) 1788 | -10/Materials | Entered another Materials area 1788 | -9/Materials | Evolved 2 slots: Utility x1, Weapon x1 1788 | -9/Materials | Discovered new exit (range 16) 2092 | -9/Materials | Build established: Skirmisher 2225 | -9/Materials | Discovered new exit (range 5) 2297 | -9/Materials | Identified exit to Mines 2297 | -9/Materials | Identified exit to Storage 2434 | -9/Materials | Entered Mines 2758 | -9/Mines | Discovered new exit (range 5) 2813 | -9/Mines | Assisted by bots powering up and referring to "LRC-V3" 2856 | -9/Mines | Deemed a non-threat by the Exiles lab entrance 2856 | -9/Mines | Discovered new exit (range 5) 2866 | -9/Mines | Entered Exiles 2866 | -9/Exiles | Accompanied by 3 allies 2924 | -9/Exiles | Met 8R-AWN 2965 | -9/Exiles | Met EX-HEX 3030 | -9/Exiles | Met EX-BIN 3063 | -9/Exiles | Aligned with FarCom system 3066 | -9/Exiles | Given EX-Vault access code 3133 | -9/Exiles | Opened EX-Vault 3154 | -9/Exiles | Found Latent Energy Streamer 3209 | -9/Exiles | Warned to stay clear of 0b10 Research branches 3283 | -9/Exiles | Met EX-DEC 3362 | -9/Exiles | Discovered new exit (range 14) 3394 | -9/Exiles | Left Exiles lab with Latent Energy Streamer 3394 | -9/Exiles | Entered Mines 3394 | -8/Mines | Accompanied by 3 allies 3633 | -8/Mines | Discovered new exit (range 7) 3648 | -8/Mines | Entered Materials 3648 | -8/Materials | Evolved 2 slots: Utility x2 3803 | -8/Materials | System corruption reached 10% 3837 | -8/Materials | Lost 3 parts (1p2n) 3884 | -8/Materials | Hacking Suite fried by hacking feedback 3961 | -8/Materials | Lost 3 parts (1p2w) 4286 | -8/Materials | System corruption reached 30% 4322 | -8/Materials | Lost 3 parts (1p2w) 4388 | -8/Materials | Build established: Hauler-Skirmisher 4439 | -8/Materials | Core integrity fell below 50% 4514 | -8/Materials | Destroyed 8 combat bots 4521 | -8/Materials | Core integrity fell below 20% 4535 | -8/Materials | Destroyed by G-47 Trooper with Particle Gun Last Messages --------------- 04522_ Recycling unit begins recycling process. 04522_ K-01 Serf collects debris. 04523_ The unstable cave ceiling collapses. 04524_ R-06 Scavenger inserts Flight Unit into recycling unit. 04526_ K-01 Serf collects debris. 04526_ G-47 Trooper knocked back. 04527_ U-05 Engineer lays Concrete. 04527_ R-06 Scavenger inserts Targeting Computer into recycling unit. 04528_ Recycling unit begins recycling process. 04528_ U-05 Engineer lays Concrete. 04529_ K-01 Serf collects debris. 04529_ U-05 Engineer builds a Wall. 04530_ R-06 Scavenger inserts Adv. Heat Sink into recycling unit. 04530_ Arm. Wheel destroyed. 04530_ Knocked back. 04532_ K-01 Serf collects debris. 04533_ Critical hit (Burn: +37). Map ----- +----------------------------------------------------+ | # ????## # #?????? | | / ### ????# ## ##?#### | | # # # """????### ## # | | # # " # ##### # # # | | # # " ################ % # ## # ### | | # # " | | ##" % | | ### ! | | #?#################### #### +##### | | #????????????????????## ##??## # # | | #?????????????????????# #????## ## # | | #?????????????????????# ####### # # | | " #????????????????????## # ! ### | | """ #????????????????????# # # | | #????????######?????### # ! | | ??? #???????## # #???## [ ### ## | | ??? #?????### # ##?# ## #?######?? | | ???###?????# ## ###### #????????? | | ???????????## ## # % #????????? | | ????????????# # % #????????? | | ????????????# # * # * #????????? | | ????????????# % % # #####????????? | | ???????????# # # "" / % [# ] #????????? | | ???????????## # "Y %!/ H %=! #????????? | | ????????????#####; "" %r!/ ; g[%*! T ????????? | | ?????????????????# =@ % g*%*% ??????? | | ?????????????????########### [ %[k ?????? | | ????????????????????????????#### [%[ ######????? | | ???????????????????????????????? ##[! #?????????? | | ????????????????????????????????? #? #?????????? | | ??????????????????????????????????#? +?????????? | | ???????????????????????????????????? #?????????? | | ???????????????????????????????????? #?????????? | | ???????????????????????????????????? ??????????? | | ???????????????????????????????????w?????????????? | | ?????????????????????????????????w???????????????? | | ?????????????????????????????o???????????????????? | | ????????????????w????????????????????????????????? | | ?????????????????????????????????????????????????? | | ?????????????????????????????????????????????????? | | ?????????????????????????????????????????????????? | | ?????????????????????????????????????????????????? | | ?????????????????????????????????????????????????? | | ?????????????????????????????????????????????????? | | ?????????????????????????????????????????????????? | | ?????????????????????????????????????????????????? | | ?????????????????????????????????????????????????? | | ?????????????????????????????????????????????????? | | ?????????????????????????????????????????????????? | | ?????????????????????????????????????????????????? | +----------------------------------------------------+ Best States ------------- Heat Dissipation 31 Energy Generation 14 Energy Capacity 275 Matter Stores 300 Matter Capacity 300 Sight Range 16 Terrain Scan Density 10 Armor Coverage 150 Resistance: KI 20 Evasion (%) 50 Recoil Reduction 2 Offensive Hacking 20 Item Schematics ----------------- None Robot Schematics ------------------ None Fabricated ------------ Nothing Repaired ---------- Nothing Alien Tech Used ----------------- None Achievements -------------- None Challenges ------------ None Game ------ Seed WaveSurgeDoomcannon Manual? 0 Play Time 00:29:22 Cumulative 69.1 hours Start 2025.08.07 @ 21:27:11 End 2025.08.07 @ 22:07:43 Sessions 1 Manual Loads 0 Difficulty Rogue Special Mode None Game No. 129 Rogue 129 Adventurer 0 Explorer 0 Win Type - Total 0 Types 0/0/0/0/0/0/0/0/0/0 Lore% 14 Gallery% 38 Achievement% 31 Wizard Run 0 Options --------- Layout 1 ASCII 1 Keyboard 0 Movement Mouse Keybinds 0 Fullscreen 2 Font 32/SmallcapsGlow Map View 50x35 Zoom Use 0% Tactical HUD 1 Map Filters NONE Filters NONE Steam 1 RUN: 21e4d096-bd2d-4605-9389-372da842747d